[Event "Titled Tuesday Blitz June 20 Late 2023"]
[White "Jaskolka, Tomasz"]
[Black "Quiroga Jaquez, Angel Ivan"]
[WhiteFideId "1170791"]
[BlackFideId "5117801"]
[WhiteElo "2155"]
[BlackElo "2011"]
[Result "1/2-1/2"]
[Round "6"]
[TimeControl "180+2"]
[Date "2023.06.20"]
[WhiteClock "0:00:08"]
[BlackClock "0:00:13"]
[Board "70"]

1. d4 {[%clk 0:03:00]}  Nf6 {[%clk 0:02:53]} 2. Nc3 {[%clk 0:02:59]}  d5 {[%clk 0:02:52]} 3. Bf4 {[%clk 0:02:58]}  c6 {[%clk 0:02:52]} 4. e3 {[%clk 0:02:57]}  e6 {[%clk 0:02:52]} 5. Nf3 {[%clk 0:02:57]}  Bd6 {[%clk 0:02:52]} 6. Ne5 {[%clk 0:02:52]}  Qc7 {[%clk 0:02:52]} 7. Bd3 {[%clk 0:02:37]}  Nbd7 {[%clk 0:02:52]} 8. Nxd7 {[%clk 0:02:38]}  Bxd7 {[%clk 0:02:51]} 9. Bxd6 {[%clk 0:02:35]}  Qxd6 {[%clk 0:02:52]} 10. f4 {[%clk 0:02:36]}  c5 {[%clk 0:02:51]} 11. Qf3 {[%clk 0:02:23]}  a6 {[%clk 0:02:37]} 12. O-O {[%clk 0:02:21]}  c4 {[%clk 0:02:27]} 13. Be2 {[%clk 0:02:20]}  Bc6 {[%clk 0:02:27]} 14. Nd1 {[%clk 0:02:02]}  Ne4 {[%clk 0:02:23]} 15. Qg4 {[%clk 0:01:52]}  g6 {[%clk 0:02:22]} 16. Nf2 {[%clk 0:01:47]}  f5 {[%clk 0:02:22]} 17. Nxe4 {[%clk 0:01:37]}  dxe4 {[%clk 0:02:15]} 18. Qh4 {[%clk 0:01:36]}  Bd5 {[%clk 0:02:08]} 19. b3 {[%clk 0:01:27]}  c3 {[%clk 0:02:00]} 20. Qf6 {[%clk 0:00:51]}  Rf8 {[%clk 0:01:57]} 21. Qg7 {[%clk 0:00:47]}  Qe7 {[%clk 0:01:43]} 22. Qe5 {[%clk 0:00:45]}  Rc8 {[%clk 0:01:43]} 23. a3 {[%clk 0:00:37]}  Qc7 {[%clk 0:01:39]} 24. Qxc7 {[%clk 0:00:37]}  Rxc7 {[%clk 0:01:40]} 25. Kf2 {[%clk 0:00:35]}  a5 {[%clk 0:01:40]} 26. b4 {[%clk 0:00:33]}  a4 {[%clk 0:01:35]} 27. h4 {[%clk 0:00:22]}  Ke7 {[%clk 0:01:34]} 28. h5 {[%clk 0:00:22]}  Kf6 {[%clk 0:01:14]} 29. hxg6 {[%clk 0:00:23]}  hxg6 {[%clk 0:01:14]} 30. Rh1 {[%clk 0:00:23]}  Rff7 {[%clk 0:01:13]} 31. Rh6 {[%clk 0:00:23]}  Rh7 {[%clk 0:01:12]} 32. Rah1 {[%clk 0:00:23]}  Rxh6 {[%clk 0:01:13]} 33. Rxh6 {[%clk 0:00:24]}  Kg7 {[%clk 0:01:13]} 34. Rh1 {[%clk 0:00:24]}  Kf6 {[%clk 0:01:07]} 35. g4 {[%clk 0:00:24]}  Kg7 {[%clk 0:01:02]} 36. Kg3 {[%clk 0:00:23]}  Bc4 {[%clk 0:00:53]} 37. Bxc4 {[%clk 0:00:19]}  Rxc4 {[%clk 0:00:54]} 38. Rd1 {[%clk 0:00:20]}  Kf7 {[%clk 0:00:49]} 39. d5 {[%clk 0:00:20]}  Rc7 {[%clk 0:00:46]} 40. Rh1 {[%clk 0:00:12]}  Kf6 {[%clk 0:00:25]} 41. g5+ {[%clk 0:00:11]}  Ke7 {[%clk 0:00:25]} 42. Rh7+ {[%clk 0:00:10]}  Kd6 {[%clk 0:00:25]} 43. Rh6 {[%clk 0:00:07]}  Rg7 {[%clk 0:00:19]} 44. dxe6 {[%clk 0:00:07]}  Kxe6 {[%clk 0:00:19]} 45. Rh8 {[%clk 0:00:08]}  Rd7 {[%clk 0:00:19]} 46. Rc8 {[%clk 0:00:08]}  Rd1 {[%clk 0:00:12]} 47. Rxc3 {[%clk 0:00:08]}  Ra1 {[%clk 0:00:13]} 48. Kf2 {[%clk 0:00:08]}  Kd5 {[%clk 0:00:13]} 49. Ke2 {[%clk 0:00:08]}  Ra2 {[%clk 0:00:11]} 50. Kd2 {[%clk 0:00:08]}  Ra1 {[%clk 0:00:12]} 51. Rc5+ {[%clk 0:00:08]}  Kd6 {[%clk 0:00:12]} 52. Rc3 {[%clk 0:00:09]}  b6 {[%clk 0:00:12]} 53. Ke2 {[%clk 0:00:07]}  Kd5 {[%clk 0:00:12]} 54. Kd2 {[%clk 0:00:07]}  Kd6 {[%clk 0:00:13]} 55. Ke2 {[%clk 0:00:08]}  Kd5 {[%clk 0:00:13]} 56. Kd2 {[%clk 0:00:08]}  Kd6 {[%clk 0:00:13]} 1/2-1/2


[Site "https://www.chess.com"]

[Event "Titled Tuesday Blitz June 20 Late 2023"]
[White "Herrera, Juan Sebastian"]
[Black "ATM622"]
[WhiteFideId "4403266"]
[WhiteElo "2255"]
[BlackElo "2635"]
[Result "0-1"]
[Round "6"]
[TimeControl "180+2"]
[Date "2023.06.20"]
[WhiteClock "0:00:00"]
[BlackClock "0:00:11"]
[Board "71"]

1. d4 {[%clk 0:02:37]}  Nf6 {[%clk 0:02:59]} 2. c4 {[%clk 0:02:38]}  e6 {[%clk 0:02:54]} 3. g3 {[%clk 0:02:38]}  d5 {[%clk 0:02:54]} 4. Nf3 {[%clk 0:02:38]}  dxc4 {[%clk 0:02:54]} 5. Bg2 {[%clk 0:02:38]}  Bd7 {[%clk 0:02:55]} 6. Ne5 {[%clk 0:02:37]}  Bc6 {[%clk 0:02:55]} 7. Nxc6 {[%clk 0:02:30]}  Nxc6 {[%clk 0:02:56]} 8. Qa4 {[%clk 0:02:19]}  Qd7 {[%clk 0:02:55]} 9. Qxc4 {[%clk 0:01:58]}  Nxd4 {[%clk 0:02:50]} 10. O-O {[%clk 0:01:31]}  c5 {[%clk 0:02:30]} 11. Nc3 {[%clk 0:01:27]}  Be7 {[%clk 0:02:26]} 12. Be3 {[%clk 0:01:20]}  O-O {[%clk 0:02:25]} 13. Rfd1 {[%clk 0:01:20]}  Rfd8 {[%clk 0:02:24]} 14. h3 {[%clk 0:00:49]}  Rac8 {[%clk 0:02:21]} 15. a4 {[%clk 0:00:44]}  e5 {[%clk 0:02:00]} 16. Bg5 {[%clk 0:00:42]}  Qe6 {[%clk 0:01:51]} 17. Qxe6 {[%clk 0:00:25]}  Nxe6 {[%clk 0:01:49]} 18. Bxf6 {[%clk 0:00:25]}  Bxf6 {[%clk 0:01:50]} 19. Rxd8+ {[%clk 0:00:20]}  Rxd8 {[%clk 0:01:51]} 20. Bxb7 {[%clk 0:00:18]}  Rb8 {[%clk 0:01:51]} 21. Bd5 {[%clk 0:00:17]}  Rxb2 {[%clk 0:01:46]} 22. Ne4 {[%clk 0:00:15]}  Rxe2 {[%clk 0:01:37]} 23. Rb1 {[%clk 0:00:14]}  h6 {[%clk 0:01:26]} 24. Rb8+ {[%clk 0:00:13]}  Kh7 {[%clk 0:01:25]} 25. Rb7 {[%clk 0:00:13]}  Kg6 {[%clk 0:01:18]} 26. Nd6 {[%clk 0:00:07]}  Nd8 {[%clk 0:00:58]} 27. Rxa7 {[%clk 0:00:05]}  Kh7 {[%clk 0:00:25]} 28. a5 {[%clk 0:00:03]}  Rd2 {[%clk 0:00:24]} 29. Be4+ {[%clk 0:00:03]}  Kg8 {[%clk 0:00:21]} 30. Ne8 {[%clk 0:00:02]}  c4 {[%clk 0:00:17]} 31. Rc7 {[%clk 0:00:02]}  Rd4 {[%clk 0:00:17]} 32. Bf3 {[%clk 0:00:01]}  e4 {[%clk 0:00:15]} 33. Be2 {[%clk 0:00:00]}  Be5 {[%clk 0:00:11]} 0-1


[Site "https://www.chess.com"]

[Event "Titled Tuesday Blitz June 20 Late 2023"]
[White "Manukyan, Sargis A."]
[Black "Sivakumar, Shaaketh"]
[WhiteFideId "13303970"]
[BlackFideId "30940176"]
[WhiteElo "2187"]
[BlackElo "2174"]
[Result "1-0"]
[Round "6"]
[TimeControl "180+2"]
[Date "2023.06.20"]
[WhiteClock "0:01:22"]
[BlackClock "0:00:10"]
[Board "72"]

1. d4 {[%clk 0:03:00]}  d5 {[%clk 0:02:59]} 2. c4 {[%clk 0:03:01]}  c6 {[%clk 0:02:59]} 3. Nc3 {[%clk 0:03:01]}  Nf6 {[%clk 0:02:58]} 4. e3 {[%clk 0:03:02]}  a6 {[%clk 0:02:57]} 5. Nf3 {[%clk 0:03:02]}  Bf5 {[%clk 0:02:56]} 6. Bd3 {[%clk 0:03:02]}  Bxd3 {[%clk 0:02:53]} 7. Qxd3 {[%clk 0:03:03]}  e6 {[%clk 0:02:53]} 8. O-O {[%clk 0:03:03]}  Nbd7 {[%clk 0:02:52]} 9. e4 {[%clk 0:03:04]}  dxe4 {[%clk 0:02:51]} 10. Nxe4 {[%clk 0:03:05]}  Nxe4 {[%clk 0:02:51]} 11. Qxe4 {[%clk 0:03:06]}  Nf6 {[%clk 0:02:51]} 12. Qe2 {[%clk 0:03:01]}  Be7 {[%clk 0:02:52]} 13. Rd1 {[%clk 0:03:01]}  O-O {[%clk 0:02:52]} 14. Bg5 {[%clk 0:03:01]}  Qc7 {[%clk 0:02:47]} 15. Bh4 {[%clk 0:02:57]}  Rfd8 {[%clk 0:02:41]} 16. b3 {[%clk 0:02:57]}  a5 {[%clk 0:02:37]} 17. Bg3 {[%clk 0:02:57]}  Qb6 {[%clk 0:02:37]} 18. Ne5 {[%clk 0:02:54]}  Rxd4 {[%clk 0:02:31]} 19. Rxd4 {[%clk 0:02:48]}  Qxd4 {[%clk 0:02:31]} 20. Rd1 {[%clk 0:02:49]}  Qb6 {[%clk 0:02:26]} 21. Nd7 {[%clk 0:02:45]}  Nxd7 {[%clk 0:02:16]} 22. Rxd7 {[%clk 0:02:46]}  Bf6 {[%clk 0:02:09]} 23. Qh5 {[%clk 0:02:38]}  g6 {[%clk 0:02:06]} 24. Qf3 {[%clk 0:02:38]}  Rd8 {[%clk 0:01:31]} 25. Rc7 {[%clk 0:02:00]}  e5 {[%clk 0:01:22]} 26. Bxe5 {[%clk 0:01:53]}  Qb4 {[%clk 0:01:21]} 27. Kf1 {[%clk 0:01:30]}  Qd2 {[%clk 0:01:03]} 28. g3 {[%clk 0:01:30]}  Qc1+ {[%clk 0:00:17]} 29. Kg2 {[%clk 0:01:30]}  Rd1 {[%clk 0:00:18]} 30. Rc8+ {[%clk 0:01:25]}  Bd8 {[%clk 0:00:15]} 31. Rxd8+ {[%clk 0:01:24]}  Rxd8 {[%clk 0:00:10]} 32. Qf6 {[%clk 0:01:22]} 1-0


[Site "https://www.chess.com"]

[Event "Titled Tuesday Blitz June 20 Late 2023"]
[White "Ingebretsen, Jens E"]
[Black "Mikhalsky, Vladimir"]
[WhiteFideId "1522965"]
[BlackFideId "14144352"]
[WhiteElo "2213"]
[BlackElo "2236"]
[Result "1-0"]
[Round "6"]
[TimeControl "180+2"]
[Date "2023.06.20"]
[WhiteClock "0:00:33"]
[BlackClock "0:00:00"]
[Board "74"]

1. e4 {[%clk 0:03:00]}  g6 {[%clk 0:02:59]} 2. Nf3 {[%clk 0:02:59]}  Bg7 {[%clk 0:02:59]} 3. d4 {[%clk 0:02:59]}  d6 {[%clk 0:02:59]} 4. Bc4 {[%clk 0:02:59]}  a6 {[%clk 0:02:56]} 5. Qe2 {[%clk 0:02:59]}  e6 {[%clk 0:02:55]} 6. h4 {[%clk 0:02:57]}  h6 {[%clk 0:02:54]} 7. Nc3 {[%clk 0:02:56]}  Ne7 {[%clk 0:02:54]} 8. h5 {[%clk 0:02:54]}  g5 {[%clk 0:02:53]} 9. Nxg5 {[%clk 0:02:52]}  hxg5 {[%clk 0:02:51]} 10. Bxg5 {[%clk 0:02:53]}  Bxd4 {[%clk 0:02:42]} 11. O-O-O {[%clk 0:02:48]}  Nbc6 {[%clk 0:02:25]} 12. Nd5 {[%clk 0:02:25]}  Be5 {[%clk 0:01:26]} 13. f4 {[%clk 0:02:20]}  exd5 {[%clk 0:01:21]} 14. exd5 {[%clk 0:02:18]}  f6 {[%clk 0:01:06]} 15. dxc6 {[%clk 0:02:14]}  fxg5 {[%clk 0:01:04]} 16. fxe5 {[%clk 0:02:14]}  d5 {[%clk 0:00:58]} 17. h6 {[%clk 0:02:09]}  Be6 {[%clk 0:00:27]} 18. Qh5+ {[%clk 0:01:52]}  Bf7 {[%clk 0:00:26]} 19. Qxg5 {[%clk 0:01:52]}  Nxc6 {[%clk 0:00:24]} 20. Qg7 {[%clk 0:01:46]}  Rg8 {[%clk 0:00:24]} 21. Bxd5 {[%clk 0:01:01]}  Rxg7 {[%clk 0:00:19]} 22. Bxc6+ {[%clk 0:01:01]}  bxc6 {[%clk 0:00:18]} 23. Rxd8+ {[%clk 0:01:02]}  Rxd8 {[%clk 0:00:17]} 24. hxg7 {[%clk 0:01:02]}  Ke7 {[%clk 0:00:16]} 25. Rh8 {[%clk 0:01:02]}  Bg8 {[%clk 0:00:16]} 26. g4 {[%clk 0:01:00]}  Ke6 {[%clk 0:00:16]} 27. Rh6+ {[%clk 0:01:00]}  Kxe5 {[%clk 0:00:14]} 28. Rxc6 {[%clk 0:01:01]}  Rd6 {[%clk 0:00:13]} 29. Rxc7 {[%clk 0:01:00]}  Rg6 {[%clk 0:00:13]} 30. a4 {[%clk 0:00:58]}  Rxg4 {[%clk 0:00:12]} 31. b3 {[%clk 0:00:58]}  Rg6 {[%clk 0:00:11]} 32. Kb2 {[%clk 0:00:57]}  Kd5 {[%clk 0:00:11]} 33. b4 {[%clk 0:00:55]}  Kd6 {[%clk 0:00:10]} 34. Ra7 {[%clk 0:00:55]}  Kd5 {[%clk 0:00:10]} 35. Kc3 {[%clk 0:00:52]}  Rg3+ {[%clk 0:00:09]} 36. Kb2 {[%clk 0:00:52]}  Kc4 {[%clk 0:00:09]} 37. Rb7 {[%clk 0:00:52]}  Rg6 {[%clk 0:00:08]} 38. Ka3 {[%clk 0:00:48]}  Rg3+ {[%clk 0:00:08]} 39. Kb2 {[%clk 0:00:48]}  Bd5 {[%clk 0:00:08]} 40. Rd7 {[%clk 0:00:44]}  Be6 {[%clk 0:00:07]} 41. Re7 {[%clk 0:00:42]}  Bg8 {[%clk 0:00:07]} 42. b5 {[%clk 0:00:33]}  axb5 {[%clk 0:00:07]} 43. a5 {[%clk 0:00:34]}  b4 {[%clk 0:00:05]} 44. a6 {[%clk 0:00:34]}  Ra3 {[%clk 0:00:04]} 45. a7 {[%clk 0:00:34]}  Bd5 {[%clk 0:00:03]} 46. Rd7 {[%clk 0:00:33]}  Be6 {[%clk 0:00:03]} 47. Re7 {[%clk 0:00:34]}  Bd5 {[%clk 0:00:03]} 48. Rc7+ {[%clk 0:00:34]}  Kb5 {[%clk 0:00:03]} 49. Rd7 {[%clk 0:00:34]}  Be6 {[%clk 0:00:03]} 50. Rb7+ {[%clk 0:00:33]}  Kc5 {[%clk 0:00:02]} 51. Re7 {[%clk 0:00:33]}  Bg8 {[%clk 0:00:00]} 52. Re8 {[%clk 0:00:33]} 1-0


[Site "https://www.chess.com"]

[Event "Titled Tuesday Blitz June 20 Late 2023"]
[White "Tobares, Leandro"]
[Black "Bjelobrk, Igor"]
[WhiteFideId "106402"]
[BlackFideId "4300726"]
[WhiteElo "2292"]
[BlackElo "2319"]
[Result "0-1"]
[Round "6"]
[TimeControl "180+2"]
[Date "2023.06.20"]
[WhiteClock "0:00:00"]
[BlackClock "0:00:11"]
[Board "75"]

1. e4 {[%clk 0:03:00]}  e6 {[%clk 0:02:55]} 2. d3 {[%clk 0:02:58]}  c5 {[%clk 0:02:54]} 3. Nf3 {[%clk 0:02:57]}  b6 {[%clk 0:02:53]} 4. g3 {[%clk 0:02:57]}  Bb7 {[%clk 0:02:52]} 5. Bg2 {[%clk 0:02:57]}  d6 {[%clk 0:02:53]} 6. O-O {[%clk 0:02:56]}  Nf6 {[%clk 0:02:53]} 7. a4 {[%clk 0:02:55]}  Nc6 {[%clk 0:02:47]} 8. Re1 {[%clk 0:02:51]}  Be7 {[%clk 0:02:44]} 9. c3 {[%clk 0:02:51]}  O-O {[%clk 0:02:40]} 10. d4 {[%clk 0:02:47]}  cxd4 {[%clk 0:02:38]} 11. cxd4 {[%clk 0:02:47]}  d5 {[%clk 0:02:38]} 12. e5 {[%clk 0:02:46]}  Ne4 {[%clk 0:02:38]} 13. Nc3 {[%clk 0:02:45]}  Rc8 {[%clk 0:02:35]} 14. Be3 {[%clk 0:02:40]}  Nb4 {[%clk 0:02:25]} 15. Rc1 {[%clk 0:02:32]}  Qd7 {[%clk 0:02:06]} 16. Bf1 {[%clk 0:02:16]}  Nxc3 {[%clk 0:01:45]} 17. Rxc3 {[%clk 0:02:15]}  Ba6 {[%clk 0:01:41]} 18. Qb3 {[%clk 0:02:05]}  Bxf1 {[%clk 0:01:38]} 19. Rxf1 {[%clk 0:02:05]}  Rxc3 {[%clk 0:01:31]} 20. bxc3 {[%clk 0:02:04]}  Nc6 {[%clk 0:01:31]} 21. Nd2 {[%clk 0:01:49]}  Rc8 {[%clk 0:01:28]} 22. Qb5 {[%clk 0:01:41]}  h6 {[%clk 0:01:25]} 23. f4 {[%clk 0:01:37]}  Rc7 {[%clk 0:01:09]} 24. g4 {[%clk 0:01:21]}  Na5 {[%clk 0:00:57]} 25. Qxd7 {[%clk 0:01:15]}  Rxd7 {[%clk 0:00:57]} 26. f5 {[%clk 0:01:13]}  Rc7 {[%clk 0:00:56]} 27. Rc1 {[%clk 0:01:08]}  Bb4 {[%clk 0:00:54]} 28. fxe6 {[%clk 0:00:58]}  fxe6 {[%clk 0:00:53]} 29. Ne4 {[%clk 0:00:49]}  Ba3 {[%clk 0:00:42]} 30. Ra1 {[%clk 0:00:42]}  Bb2 {[%clk 0:00:43]} 31. Ra2 {[%clk 0:00:38]}  Bxc3 {[%clk 0:00:43]} 32. Nd6 {[%clk 0:00:35]}  Bb4 {[%clk 0:00:36]} 33. Bf4 {[%clk 0:00:29]}  g5 {[%clk 0:00:31]} 34. Bg3 {[%clk 0:00:28]}  Rc1+ {[%clk 0:00:30]} 35. Kg2 {[%clk 0:00:27]}  Nc4 {[%clk 0:00:24]} 36. Rf2 {[%clk 0:00:26]}  Ne3+ {[%clk 0:00:22]} 37. Kh3 {[%clk 0:00:25]}  Rc7 {[%clk 0:00:16]} 38. Rf6 {[%clk 0:00:24]}  Bc3 {[%clk 0:00:06]} 39. Rxh6 {[%clk 0:00:22]}  Bxd4 {[%clk 0:00:06]} 40. Rxe6 {[%clk 0:00:21]}  Rd7 {[%clk 0:00:04]} 41. Ne8 {[%clk 0:00:21]}  Kf7 {[%clk 0:00:03]} 42. Nf6 {[%clk 0:00:09]}  Kxe6 {[%clk 0:00:04]} 43. Nxd7 {[%clk 0:00:09]}  Kxd7 {[%clk 0:00:05]} 44. Bf2 {[%clk 0:00:07]}  Ke6 {[%clk 0:00:06]} 45. Bxe3 {[%clk 0:00:06]}  Bxe3 {[%clk 0:00:06]} 46. Kg3 {[%clk 0:00:06]}  Bf4+ {[%clk 0:00:07]} 47. Kf3 {[%clk 0:00:06]}  Bxe5 {[%clk 0:00:08]} 48. h4 {[%clk 0:00:07]}  gxh4 {[%clk 0:00:09]} 49. g5 {[%clk 0:00:07]}  h3 {[%clk 0:00:10]} 50. Kg4 {[%clk 0:00:08]}  h2 {[%clk 0:00:10]} 51. Kh3 {[%clk 0:00:00]}  h1=Q+ {[%clk 0:00:11]} 0-1


[Site "https://www.chess.com"]

[Event "Titled Tuesday Blitz June 20 Late 2023"]
[White "Taranenko, Evgueniy"]
[Black "Ladron De Guevara Pinto, Paolo"]
[WhiteFideId "14122138"]
[BlackFideId "2290847"]
[WhiteElo "2101"]
[BlackElo "2398"]
[Result "1-0"]
[Round "6"]
[TimeControl "180+2"]
[Date "2023.06.20"]
[WhiteClock "0:00:27"]
[BlackClock "0:00:00"]
[Board "77"]

1. e4 {[%clk 0:03:00]}  e5 {[%clk 0:02:53]} 2. Nf3 {[%clk 0:03:00]}  Nc6 {[%clk 0:02:54]} 3. Bc4 {[%clk 0:03:00]}  Nf6 {[%clk 0:02:49]} 4. Ng5 {[%clk 0:03:00]}  d5 {[%clk 0:02:46]} 5. exd5 {[%clk 0:03:01]}  b5 {[%clk 0:02:46]} 6. Bf1 {[%clk 0:02:58]}  Nd4 {[%clk 0:02:45]} 7. c3 {[%clk 0:02:58]}  Nxd5 {[%clk 0:02:45]} 8. cxd4 {[%clk 0:02:57]}  Qxg5 {[%clk 0:02:46]} 9. Bxb5+ {[%clk 0:02:58]}  Kd8 {[%clk 0:02:46]} 10. O-O {[%clk 0:02:58]}  Bb7 {[%clk 0:02:46]} 11. Qf3 {[%clk 0:02:52]}  Rb8 {[%clk 0:02:45]} 12. d3 {[%clk 0:02:46]}  Qg6 {[%clk 0:02:12]} 13. Qg3 {[%clk 0:02:45]}  Nf4 {[%clk 0:01:13]} 14. Bxf4 {[%clk 0:02:34]}  exf4 {[%clk 0:01:13]} 15. Qxg6 {[%clk 0:02:33]}  hxg6 {[%clk 0:01:13]} 16. Bc4 {[%clk 0:02:30]}  Bd6 {[%clk 0:00:44]} 17. Nd2 {[%clk 0:02:27]}  f5 {[%clk 0:00:41]} 18. Rfe1 {[%clk 0:02:22]}  Rh5 {[%clk 0:00:31]} 19. Re6 {[%clk 0:01:58]}  Rg5 {[%clk 0:00:25]} 20. d5 {[%clk 0:01:58]}  Bc8 {[%clk 0:00:24]} 21. Nf3 {[%clk 0:01:40]}  Bxe6 {[%clk 0:00:19]} 22. Nxg5 {[%clk 0:01:40]}  Bg8 {[%clk 0:00:18]} 23. b3 {[%clk 0:01:41]}  Be7 {[%clk 0:00:16]} 24. h4 {[%clk 0:01:35]}  Kd7 {[%clk 0:00:14]} 25. Re1 {[%clk 0:01:33]}  Bf6 {[%clk 0:00:14]} 26. Kf1 {[%clk 0:01:25]}  Kd6 {[%clk 0:00:13]} 27. Ke2 {[%clk 0:00:58]}  Bxd5 {[%clk 0:00:11]} 28. Bxd5 {[%clk 0:00:57]}  Kxd5 {[%clk 0:00:12]} 29. Kf3 {[%clk 0:00:55]}  Rh8 {[%clk 0:00:06]} 30. Ne6 {[%clk 0:00:50]}  Rxh4 {[%clk 0:00:04]} 31. Nxf4+ {[%clk 0:00:50]}  Kd4 {[%clk 0:00:05]} 32. Nxg6 {[%clk 0:00:48]}  Rh6 {[%clk 0:00:06]} 33. Nf4 {[%clk 0:00:47]}  g5 {[%clk 0:00:05]} 34. Ne6+ {[%clk 0:00:41]}  Kxd3 {[%clk 0:00:05]} 35. Nxc7 {[%clk 0:00:41]}  g4+ {[%clk 0:00:04]} 36. Kf4 {[%clk 0:00:40]}  Bc3 {[%clk 0:00:03]} 37. Re3+ {[%clk 0:00:36]}  Kc2 {[%clk 0:00:03]} 38. Kxf5 {[%clk 0:00:35]}  Rf6+ {[%clk 0:00:03]} 39. Kxg4 {[%clk 0:00:35]}  Rxf2 {[%clk 0:00:04]} 40. Kg3 {[%clk 0:00:27]}  Kb2 {[%clk 0:00:02]} 41. Kxf2 {[%clk 0:00:27]}  Bd4 {[%clk 0:00:00]} 42. Kf3 {[%clk 0:00:27]} 1-0


[Site "https://www.chess.com"]

[Event "Titled Tuesday Blitz June 20 Late 2023"]
[White "Ghazarian, Kirk"]
[Black "Sreyas Payyappat"]
[WhiteFideId "30908604"]
[BlackFideId "46674969"]
[WhiteElo "2346"]
[BlackElo "2043"]
[Result "0-1"]
[Round "6"]
[TimeControl "180+2"]
[Date "2023.06.20"]
[WhiteClock "0:01:01"]
[BlackClock "0:00:10"]
[Board "79"]

1. d4 {[%clk 0:03:00]}  Nf6 {[%clk 0:02:48]} 2. c4 {[%clk 0:03:01]}  c5 {[%clk 0:02:48]} 3. d5 {[%clk 0:03:01]}  e6 {[%clk 0:02:46]} 4. Nc3 {[%clk 0:03:01]}  exd5 {[%clk 0:02:46]} 5. cxd5 {[%clk 0:03:02]}  d6 {[%clk 0:02:43]} 6. Nf3 {[%clk 0:03:02]}  g6 {[%clk 0:02:42]} 7. Bf4 {[%clk 0:03:03]}  Bg7 {[%clk 0:02:42]} 8. e3 {[%clk 0:03:03]}  O-O {[%clk 0:02:42]} 9. h3 {[%clk 0:03:04]}  Re8 {[%clk 0:02:41]} 10. Bd3 {[%clk 0:03:03]}  a6 {[%clk 0:02:38]} 11. a4 {[%clk 0:03:02]}  Nbd7 {[%clk 0:02:37]} 12. O-O {[%clk 0:03:03]}  Qc7 {[%clk 0:02:16]} 13. Re1 {[%clk 0:03:02]}  Rb8 {[%clk 0:02:12]} 14. Bh2 {[%clk 0:03:02]}  c4 {[%clk 0:02:12]} 15. Bf1 {[%clk 0:03:01]}  b5 {[%clk 0:02:11]} 16. axb5 {[%clk 0:03:02]}  axb5 {[%clk 0:02:12]} 17. Nd4 {[%clk 0:03:01]}  Qc5 {[%clk 0:02:00]} 18. Nc6 {[%clk 0:03:00]}  Rb6 {[%clk 0:01:56]} 19. Rc1 {[%clk 0:02:53]}  Bb7 {[%clk 0:01:49]} 20. b4 {[%clk 0:02:53]}  cxb3 {[%clk 0:01:41]} 21. Nxb5 {[%clk 0:02:50]}  Qxd5 {[%clk 0:01:21]} 22. Qxd5 {[%clk 0:02:49]}  Nxd5 {[%clk 0:01:20]} 23. Nxd6 {[%clk 0:02:50]}  b2 {[%clk 0:01:17]} 24. Rb1 {[%clk 0:02:21]}  Re6 {[%clk 0:01:03]} 25. Nxb7 {[%clk 0:02:21]}  Rexc6 {[%clk 0:01:03]} 26. Na5 {[%clk 0:02:18]}  Rc2 {[%clk 0:00:55]} 27. Nc4 {[%clk 0:02:18]}  Rb4 {[%clk 0:00:54]} 28. Red1 {[%clk 0:01:54]}  Rbxc4 {[%clk 0:00:22]} 29. Rxd5 {[%clk 0:01:31]}  Rc1 {[%clk 0:00:18]} 30. Rxb2 {[%clk 0:01:31]}  Bxb2 {[%clk 0:00:15]} 31. Rxd7 {[%clk 0:01:32]}  Ra4 {[%clk 0:00:14]} 32. g4 {[%clk 0:01:15]}  Raa1 {[%clk 0:00:13]} 33. Kg2 {[%clk 0:01:15]}  Rxf1 {[%clk 0:00:13]} 34. Bg3 {[%clk 0:01:16]}  Bf6 {[%clk 0:00:13]} 35. Rd6 {[%clk 0:01:16]}  Kg7 {[%clk 0:00:13]} 36. Rc6 {[%clk 0:01:15]}  Rfc1 {[%clk 0:00:13]} 37. Rb6 {[%clk 0:01:14]}  Rc2 {[%clk 0:00:13]} 38. Kf3 {[%clk 0:01:13]}  Raa2 {[%clk 0:00:12]} 39. Rb8 {[%clk 0:01:13]}  h5 {[%clk 0:00:12]} 40. gxh5 {[%clk 0:01:12]}  gxh5 {[%clk 0:00:12]} 41. h4 {[%clk 0:01:11]}  Rc4 {[%clk 0:00:12]} 42. Rb5 {[%clk 0:01:09]}  Kg6 {[%clk 0:00:12]} 43. Rb6 {[%clk 0:01:07]}  Rac2 {[%clk 0:00:11]} 44. Ra6 {[%clk 0:01:05]}  Rc6 {[%clk 0:00:11]} 45. Ra4 {[%clk 0:01:05]}  R2c4 {[%clk 0:00:12]} 46. Ra1 {[%clk 0:01:01]}  Bxa1 {[%clk 0:00:10]} 0-1


[Site "https://www.chess.com"]

[Event "Titled Tuesday Blitz June 20 Late 2023"]
[White "ElDivis"]
[Black "Yuan, Qingyu"]
[BlackFideId "8609772"]
[WhiteElo "2536"]
[BlackElo "2359"]
[Result "0-1"]
[Round "6"]
[TimeControl "180+2"]
[Date "2023.06.20"]
[WhiteClock "0:00:00"]
[BlackClock "0:00:08"]
[Board "80"]

1. e4 {[%clk 0:03:00]}  e5 {[%clk 0:03:00]} 2. Nf3 {[%clk 0:03:00]}  Nc6 {[%clk 0:03:00]} 3. Bc4 {[%clk 0:02:57]}  Bc5 {[%clk 0:03:00]} 4. Nc3 {[%clk 0:02:50]}  Nf6 {[%clk 0:03:00]} 5. Nd5 {[%clk 0:02:48]}  d6 {[%clk 0:02:52]} 6. d3 {[%clk 0:02:42]}  Nxd5 {[%clk 0:02:47]} 7. Bxd5 {[%clk 0:02:43]}  O-O {[%clk 0:02:45]} 8. Be3 {[%clk 0:02:29]}  Bxe3 {[%clk 0:02:32]} 9. fxe3 {[%clk 0:02:30]}  Be6 {[%clk 0:02:26]} 10. Bxe6 {[%clk 0:02:27]}  fxe6 {[%clk 0:02:26]} 11. O-O {[%clk 0:02:28]}  h6 {[%clk 0:02:13]} 12. Qe1 {[%clk 0:02:25]}  Qe8 {[%clk 0:02:11]} 13. Qg3 {[%clk 0:02:21]}  Qh5 {[%clk 0:02:11]} 14. Rf2 {[%clk 0:02:16]}  Rf6 {[%clk 0:02:10]} 15. Raf1 {[%clk 0:02:06]}  Raf8 {[%clk 0:02:04]} 16. a3 {[%clk 0:02:01]}  Ne7 {[%clk 0:01:47]} 17. Qh4 {[%clk 0:01:49]}  Qg6 {[%clk 0:01:24]} 18. h3 {[%clk 0:01:39]}  Qe8 {[%clk 0:01:00]} 19. Nd2 {[%clk 0:01:25]}  Ng6 {[%clk 0:00:54]} 20. Qg3 {[%clk 0:01:17]}  Qe7 {[%clk 0:00:51]} 21. Rxf6 {[%clk 0:01:12]}  Rxf6 {[%clk 0:00:51]} 22. Rxf6 {[%clk 0:01:09]}  Qxf6 {[%clk 0:00:52]} 23. Nf3 {[%clk 0:01:08]}  Nf8 {[%clk 0:00:46]} 24. d4 {[%clk 0:01:06]}  exd4 {[%clk 0:00:44]} 25. exd4 {[%clk 0:01:07]}  Ng6 {[%clk 0:00:39]} 26. c3 {[%clk 0:01:00]}  Nf4 {[%clk 0:00:35]} 27. Kh2 {[%clk 0:00:57]}  e5 {[%clk 0:00:31]} 28. Qg4 {[%clk 0:00:53]}  Kh7 {[%clk 0:00:26]} 29. Qd7 {[%clk 0:00:48]}  Qg6 {[%clk 0:00:20]} 30. Qf5 {[%clk 0:00:19]}  Qxf5 {[%clk 0:00:17]} 31. exf5 {[%clk 0:00:20]}  e4 {[%clk 0:00:18]} 32. Ne1 {[%clk 0:00:19]}  Nd3 {[%clk 0:00:17]} 33. Nc2 {[%clk 0:00:16]}  Nxb2 {[%clk 0:00:18]} 34. g4 {[%clk 0:00:16]}  Nc4 {[%clk 0:00:16]} 35. Kg3 {[%clk 0:00:15]}  d5 {[%clk 0:00:16]} 36. Kf4 {[%clk 0:00:15]}  a5 {[%clk 0:00:15]} 37. a4 {[%clk 0:00:15]}  c6 {[%clk 0:00:15]} 38. Na1 {[%clk 0:00:15]}  b5 {[%clk 0:00:15]} 39. axb5 {[%clk 0:00:12]}  cxb5 {[%clk 0:00:16]} 40. h4 {[%clk 0:00:11]}  a4 {[%clk 0:00:14]} 41. g5 {[%clk 0:00:12]}  hxg5+ {[%clk 0:00:15]} 42. hxg5 {[%clk 0:00:13]}  Kg8 {[%clk 0:00:12]} 43. g6 {[%clk 0:00:10]}  Kf8 {[%clk 0:00:13]} 44. Kg5 {[%clk 0:00:09]}  e3 {[%clk 0:00:10]} 45. Nc2 {[%clk 0:00:07]}  a3 {[%clk 0:00:10]} 46. f6 {[%clk 0:00:06]}  e2 {[%clk 0:00:09]} 47. f7 {[%clk 0:00:02]}  a2 {[%clk 0:00:08]} 48. Nb4 {[%clk 0:00:00]}  e1=Q {[%clk 0:00:08]} 0-1


[Site "https://www.chess.com"]